Cogmind - Beta 12 @@@ ROGUE MODE // 2023.04.05 @ 14:36:47 Player: Mr Goldstein Result: Self-destructed Performance ------------- Evolutions (1) 500 Regions Visited (2) 400 Robots Destroyed (12) 60 Value Destroyed (269) 269 Prototype IDs (5) 100 Alien Tech Used (0) 0 Bonus (0) 0 TOTAL SCORE: 1329 Bonus ------- None Cogmind --------- Core Integrity 400/400 Matter 300/300 Energy 265/265 System Corruption 0% Temperature Cool (0) Movement Rolling (108) Ox1 Location -9/Materials Parts ------- > --- POWER (1) -------- Improved Ion Engine > --- PROPULSION (3) --- Wheel Compact Wheel Compact Wheel > --- UTILITY (3) ------ Improved Heat Sink High-capacity Storage Unit High-powered Tractor Beam > --- WEAPON (2) ------- Light Assault Rifle Light Cannon > --- INVENTORY (20) --- Light Ion Engine Improved Ion Engine Improved Ion Engine Improved Ion Engine Light Nuclear Core Tractor Beam Assault Rifle Light Assault Rifle Peak State ------------ > --- POWER ------------ Improved Ion Engine > --- PROPULSION ------- Wheel Compact Wheel Compact Wheel > --- UTILITY ---------- Improved Heat Sink High-capacity Storage Unit High-powered Tractor Beam > --- WEAPON ----------- Light Assault Rifle Light Cannon > --- INVENTORY -------- Improved Ion Engine Improved Ion Engine Improved Ion Engine Light Nuclear Core Tractor Beam Assault Rifle Light Assault Rifle [Rating: 14] Favorites ----------- Power Improved Ion Engine Engine Improved Ion Engine Propulsion Compact Wheel Wheel Compact Wheel Utility High-capacity Storage Unit Device Improved Heat Sink Storage High-capacity Storage Unit Weapon Light Assault Rifle Ballistic Gun Light Assault Rifle Ballistic Cannon Light Cannon Build | -11 -10 -9 ------- Run | Jun Mat Mat Slots Evolved 2 | . . 2 Power . | . . . Propulsion 1 | . . 1 Utility 1 | . . 1 Weapon . | . . . Parts Attached 18 | 6 8 4 Power 3 | 1 2 . Engine 3 | 1 2 . Core . | . . . Reactor . | . . . Propulsion 5 | 2 1 2 Treads . | . . . Leg . | . . . Wheel 5 | 2 1 2 Hover . | . . . Flight . | . . . Utility 6 | 1 3 2 Device 3 | . 1 2 Storage 3 | 1 2 . Processor . | . . . Hackware . | . . . Protection . | . . . Artifact . | . . . Weapon 4 | 2 2 . Energy Gun . | . . . Energy Cannon . | . . . Ballistic Gun 3 | 2 1 . Ballistic Cannon 1 | . 1 . Launcher . | . . . Special Weapon . | . . . Impact Weapon . | . . . Slashing Weapon . | . . . Piercing Weapon . | . . . Special Melee Weapon . | . . . Unidentified Prototypes . | . . . Parts Lost 5 | . 5 . Power 1 | . 1 . Propulsion 2 | . 2 . Utility . | . . . Weapon 2 | . 2 . Highest Loss Streak 4 | . 4 . To Critical Strikes . | . . . Average Slot Usage (%) 74 | . 66 89 Engine 11 | . 11 11 Wheel 17 | . 13 24 Device 8 | . 2 20 Storage 11 | . 12 11 Ballistic Gun 14 | . 16 11 Ballistic Cannon 9 | . 8 11 Naked Turns . | . . . Heaviest Build 53 | 13 52 53 Greatest Support 42 | 26 26 42 Greatest Overweight (x) 3 | . 3 2 Average Overweight (x) 1 | . 2 1 Largest Inventory Capacity 20 | 8 20 20 Average Capacity 17 | 7 17 20 Most Carried 8 | 2 7 8 Average Carried 4 | . 3 6 Final Capacity 20 | 8 20 20 Final Carried 8 | 1 6 8 Class Distribution -------------------- 68% | Mutant 31% | Scavenger-Mutant Dominant Class ---------------- Mutant | -10/Materials Scavenger-Mutant | -9/Materials Resources | -11 -10 -9 ----------- Run | Jun Mat Mat Matter Collected 531 | 246 220 65 Remotely 65 | . . 65 Salvage Created 447 | . 369 78 Parts 22 | . 19 3 Haulers Intercepted 1 | . 1 . Recyclers Shooed 1 | . 1 . Parts Field Recycled . | . . . Retrieved Matter . | . . . Parts Self-Destructed . | . . . Prevented . | . . . Kills | -11 -10 -9 ------- Run | Jun Mat Mat Combat Hostiles Destroyed 8 | . 8 . Guns 4 | . 4 . Cannons 4 | . 4 . Classes Destroyed 5 | . 5 . Builder 1 | . 1 . Hauler 1 | . 1 . Recycler 2 | . 1 1 Swarmer 2 | . 2 . Grunt 6 | . 6 . Best Kill Streak 6 | . 6 1 Combat Bots Only 5 | . 5 . Max Kills in Single Turn 1 | . 1 1 Gunslinging . | . . . Exploded . | . . . Melee . | . . . Uniques/NPCs Destroyed . | . . . Combat | -11 -10 -9 -------- Run | Jun Mat Mat Damage Taken 669 | . 669 . Core 241 | . 241 . Absorbed by Shields . | . . . Core Remaining (%) 51 | 100 3 . Volleys Fired 50 | . 49 1 Largest 2 | . 2 2 Hottest 55 | . 55 55 Shots Fired 75 | . 73 2 Gun 52 | . 51 1 Cannon 23 | . 22 1 Launcher . | . . . Special . | . . . Kinetic 75 | . 73 2 Thermal . | . . . Explosive . | . . . Electromagnetic . | . . . Robot Hit Streak 10 | . 10 1 Robot Miss Streak 2 | . 2 1 Penetration Max . | . . . Secondary Targets . | . . . Shots Hit Robots 57 | . 56 1 Core Hits 19 | . 18 1 Critical Kills . | . . . Critical Parts Destroyed . | . . . Critical Strikes . | . . . Melee Attacks . | . . . Impact . | . . . Slashing . | . . . Piercing . | . . . Sneak Attacks . | . . . Combat Hostiles . | . . . Follow-up Attacks . | . . . Damage Inflicted 692 | . 672 20 Guns 379 | . 379 . Cannons 308 | . 288 20 Explosions . | . . . Melee . | . . . Ramming 5 | . 5 . Kinetic 687 | . 667 20 Thermal . | . . . Explosive . | . . . Electromagnetic . | . . . Impact . | . . . Slashing . | . . . Piercing . | . . . Highest Corruption . | . . . Average Corruption . | . . . Corruption Purged . | . . . Corruption Blocked . | . . . Overload Shots . | . . . Overflow Damage . | . . . Projectiles . | . . . Explosions . | . . . Melee . | . . . Knockbacks 4 | . 4 . Impact . | . . . Kinetic 3 | . 3 . Secondary 1 | . 1 . Self-Inflicted Damage 2 | . 2 . Shots . | . . . Rammed 1 | . 1 . Targets Rammed 1 | . 1 . Kicked . | . . . Crushed . | . . . Highest Temperature 18 | . 18 . Average Temperature 8 | . 8 . Received Heat Transfer 321 | . 321 . Siege Activations . | . . . Robots Corrupted . | . . . Combat Hostiles . | . . . Parts Fried . | . . . Impact Corruptions . | . . . Robots Melted . | . . . Combat Hostiles . | . . . Parts Melted . | . . . Heat Transferred . | . . . Parts Sabotaged . | . . . Parts Stolen . | . . . Parts Stripped . | . . . Power Chain Reactions . | . . . Missiles Intercepted . | . . . Alert | -11 -10 -9 ------- Run | Jun Mat Mat Peak Influence 177 | . 177 86 Initial 74 | . . 74 Average 85 | . 105 75 Maximum Alert Level . | . . . Low Security (%) 100 | 100 100 100 Level 1 . | . . . Level 2 . | . . . Level 3 . | . . . Level 4 . | . . . Level 5 . | . . . High Security . | . . . Max Security . | . . . Squads Dispatched 3 | . 1 2 Investigation 2 | . . 2 Extermination . | . . . Reinforcement 1 | . 1 . Assault . | . . . Garrison . | . . . Intercept . | . . . Searches Triggered . | . . . Construction Impeded . | . . . Haulers Reinforced . | . . . Active Scanning Responses . | . . . Cargo Convoy Interrupts . | . . . Stealth | -11 -10 -9 --------- Run | Jun Mat Mat Distress Signals . | . . . Communications Jammed . | . . . Distress Signals . | . . . Times Spotted 11 | . 11 . Peak Tracking Total 4 | . 4 . Tactical Retreats . | . . . Traps | -11 -10 -9 ------- Run | Jun Mat Mat Traps Triggered 1 | . . 1 Indirectly . | . . . Trap Hack Attempts . | . . . Triggered . | . . . Disarmed . | . . . Reprogrammed . | . . . Reused . | . . . Traps Extracted . | . . . Installed . | . . . Triggered . | . . . Machines | -11 -10 -9 ---------- Run | Jun Mat Mat Machines Disabled . | . . . Max in Single Turn . | . . . Machines Repaired . | . . . Machines Sabotaged . | . . . Overloaded Fab Kills . | . . . Hacking | -11 -10 -9 --------- Run | Jun Mat Mat Machines Accessed 7 | . 5 2 Terminals 7 | . 5 2 Fabricators . | . . . Repair Stations . | . . . Recycling Units . | . . . Scanalyzers . | . . . Garrison Access . | . . . Total Hacks 20 | . 15 5 Successful 11 | . 10 1 Failed 9 | . 5 4 Catastrophic 3 | . . 3 Database Lockouts . | . . . Manual . | . . . Terminals 20 | . 15 5 Fabricators . | . . . Repair Stations . | . . . Recycling Units . | . . . Scanalyzers . | . . . Garrison Access . | . . . Terminal Hacks 11 | . 10 1 Record 3 | . 3 . Prototype ID Bank 3 | . 3 . Alert Level 2 | . 2 . Locate Traps 1 | . 1 . Maintenance Status 1 | . 1 . Security Status 1 | . . 1 Fabricator Hacks . | . . . Repair Station Hacks . | . . . Recycling Unit Hacks . | . . . Scanalyzer . | . . . Garrison Access Hacks . | . . . Unauthorized Hacks . | . . . Terminals . | . . . Fabricators . | . . . Repair Stations . | . . . Recycling Units . | . . . Scanalyzers . | . . . Garrison Access . | . . . Data Cores Recovered . | . . . Used . | . . . Hacking Detections 4 | . 2 2 Full Trace Events 1 | . . 1 Feedback Events . | . . . Feedback Blocked . | . . . Robot Schematics Acquired . | . . . Robots Built . | . . . Authchips . | . . . Time . | . . . Total Robot Build Rating . | . . . Part Schematics Acquired . | . . . Parts Built . | . . . Authchips . | . . . Time . | . . . Total Part Build Rating . | . . . Parts Repaired . | . . . Time . | . . . Parts Recycled . | . . . Recycled Matter . | . . . Retrieved Matter . | . . . Retrieved Components . | . . . Parts Scanalyzed . | . . . Part Schematics Acquired . | . . . Parts Damaged . | . . . Bothacking | -11 -10 -9 ------------ Run | Jun Mat Mat Used RIF Installer . | . . . Robots Hacked . | . . . Non-combat . | . . . Combat . | . . . Robot Hacks Applied . | . . . Relay Couplers Released . | . . . Fabnet Peak Effective % . | . . . Robots Rewired . | . . . Allies Hacked . | . . . Hacks Repelled . | . . . Allies | -11 -10 -9 -------- Run | Jun Mat Mat Total Allies . | . . . Largest Group . | . . . Highest-Rated Group . | . . . Highest-Rated Ally . | . . . Total Orders . | . . . Ally Attacks . | . . . Total Damage . | . . . Kills . | . . . Allies Corrupted . | . . . Allies Melted . | . . . Intel | -11 -10 -9 ------- Run | Jun Mat Mat Robot Analysis Total . | . . . Derelict Logs Recovered . | . . . Drone Launches . | . . . Drone Recoveries . | . . . Exploration | -11 -10 -9 ------------- Run | Jun Mat Mat Turns Passed 646 | 66 383 197 Spaces Moved 400 | 65 175 160 Core 20 | 14 6 . Treads . | . . . Legs . | . . . Wheels 380 | 51 169 160 Hover . | . . . Flight . | . . . Fastest Speed 50 | 50 50 105 Average Speed 114 | 81 126 115 Slowest Speed 145 | 90 145 120 Overloaded Moves . | . . . Propulsion Burnouts . | . . . Robots Hopped . | . . . Cave-ins Triggered . | . . . Exploration Rate (%) 19 | 4 37 18 Regions Visited 2 Branch Regions . Pre-discovered Areas . | . . . Known Exits Taken . | . . . Unknown Exits Taken 2 | 1 1 . Scrap Searched . | . . . Spaces Dug . | . . . Terrain Destroyed . | . . . Melee . | . . . Projectile . | . . . AOE . | . . . Terrain Rammed . | . . . Walls Destroyed . | . . . Machines Disabled . | . . . Actions | -11 -10 -9 --------- Run | Jun Mat Mat Total 520 | 77 273 170 Wait 20 | . 20 . Move 398 | 64 174 160 Hop . | . . . Pick Up 27 | 7 15 5 Fast Attach . | . . . Attach 16 | 6 7 3 Detach 1 | . 1 . Swap 2 | . 1 1 Drop 5 | . 5 . Fire 50 | . 49 1 Melee . | . . . Ram 1 | . 1 . Kick . | . . . Crush . | . . . Escape Stasis . | . . . Rewire . | . . . Trap . | . . . Miscellaneous . | . . . Route ------- -11/Junkyard -10/Materials -9/Materials History --------- Turn | Location | Event 31 | -11/Junkyard | Discovered new exit (range 16) 67 | -11/Junkyard | Entered Materials 214 | -10/Materials | Core integrity fell below 50% 226 | -10/Materials | Core integrity fell below 20% 248 | -10/Materials | Lost 4 parts (1p1n2w) 345 | -10/Materials | Build established: Mutant 424 | -10/Materials | Discovered new exit (range 12) 450 | -10/Materials | Entered another Materials area 450 | -9/Materials | Evolved 2 slots: Propulsion x1, Utility x1 647 | -9/Materials | Self-destructed Last Messages --------------- 00560_ Connecting with Terminal... 00560_ Current location identified: Materials 00596_ R-06 Scavenger destroyed. 00597_ Acquired 2 matter. 00597_ Acquired 53 matter. 00600_ Acquired Com. Wheel. 00602_ Acquired 10 matter. 00605_ Acquired Lgt. Ion Engine. 00617_ K-01 Serf collects debris. 00643_ Connecting with Terminal... >>Enumerate(Guards) Retrieving latest reported positions... Security request, restricting to local area... Found 1 active security squad. Downloaded coordinate data. 00643_ ALERT: Suspicious activity at Terminal M001. Dispatching Investigation squad. 00646_ Triggered Alarm Trap. 00646_ An alarm sounds. 00646_ ALERT: Alarm triggered, dispatching investigation squad. Map ----- +----------------------------------------------------+ | " #??????????????????????????????????????????????? | | " #??????????????????????????????????????????????? | | " #??????????????????????????????????????????????? | | #??????????????????????????????????????????????? | | " #??????????????????????????????????????????????? | | " #??????????????????????????????????????????????? | | " #??????????????????????????????????????????????? | | #??????????????????????????????????????????????? | | ########?????????????????????????????????????????? | | #####?????????????????????????????????????? | | ???????????????????????????????????? | | ####??????????????????????????????????????? | | ### ####?????????????????????????????????????????? | | #??? ???????????????????????????????????????????? | | #????##??????????????????????????????????????????? | | #????????????????????????????????????????????????? | | #????????????????????????????????????????????????? | | #????????????????????########????????????????????? | | ########?????????????? #????????????????????? | | # #?????????????? """ #????????????????????? | | # [ #??????????????? R" ?????????????????????? | | # #??????????????? """ ????????#????????????? | | + """ #???????????????? ??????? #????????????? | | # """ #???????????????? ?????? #????????????? | | # """ #????# #########/###### #????????????? | | ########????# @ #????????????? | | #????????????????##### #????????????? | | #??????????#######???# """"" #????????????? | | ############ #???# """"" ??????????????? | | #???# """""???????????????? | | #???# "T" #????????????? | | !% #???# """ #????????????? | | ############ #???# #### #????????????? | | ####?######## ##???# #??? #????????????? | | #?# """ # #????# #??? #????????????? | | #?# """ + ######+#### ???????????? | | #?# """ # ## #? k ???????????? | | "" #?# # ## #?####### ???????????? | | "" #?# # + #????????? ????????????? | | "" #?# # ## #??????????????????????? | | #?######## ###########??????????????????????? | | #????????# #????????????????????????????????? | | ###?????????# #????????????????????????????????? | | ???????????? ????????????????????????????????? | | ???????????# ????????????????????????????????? | | ???????????+ ???????????????????????????????? | | ???????????# ???????????????????????????????? | | ???????????# #???????????????????????????????? | | ???????????## ##???????????????????????????????? | | ????????????# #????????????????????????????????? | +----------------------------------------------------+ Best States ------------- Heat Dissipation 42 Energy Generation 12 Energy Capacity 265 Matter Stores 300 Matter Capacity 300 Sight Range 16 Terrain Scan Density 10 Evasion (%) 50 Item Schematics ----------------- None Robot Schematics ------------------ None Fabricated ------------ Nothing Alien Tech Used ----------------- None Achievements -------------- None Challenges ------------ None Game ------ Seed SignalMetafiberShield Manual? 0 Play Time 00:08:21 Cumulative 72.0 hours Start 2023.04.05 @ 14:21:55 End 2023.04.05 @ 14:36:47 Sessions 1 Manual Loads 0 Difficulty Rogue Special Mode None Game No. 95 Rogue 95 Adventurer 0 Explorer 0 Win Type - Total 0 Types 0/0/0/0/0/0/0/0/0 Lore% 46 Gallery% 46 Achievement% 39 Wizard Run 0 Options --------- ASCII 0 Keyboard 0 Movement Arrows Keybinds 0 Fullscreen 1 Font 12/Smallcaps Map View 83x54 Tactical HUD 1 Map Filters NONE Filters NONE Steam 1 RUN: 2a5efa5c-b465-4bf3-9bce-98577145714d